fUSD/lending_fUSD_20260520
["ID","MTS","AMOUNT","RATE_DAILY","PERIOD"]
[422675867,1779235838000,-402.44586272,0.00012398,2]
[422675873,1779235838000,-22398.14276478,0.000124,2]
[422675879,1779235838000,-210.11647569,0.00012436,2]
[422675881,1779235838000,-166.66,0.00012463,2]
[422675887,1779235838000,-6049.0,0.00012466,2]
[422675896,1779235838000,-311.25395664,0.000125,2]
[422675898,1779235838000,-3245.40181314,0.00012522,2]
[422675900,1779235838000,-1680.0,0.0001253,2]
[422675902,1779235838000,-1098.07046975,0.00012572,3]
[422675890,1779235838000,-1098.07046975,0.00012497,3]
[422675892,1779235838000,-1098.07046975,0.00012497,3]
[422675904,1779235838000,-1098.07046974,0.00012572,3]
[422675894,1779235838000,-1098.07046975,0.00012497,3]
[422675906,1779235838000,-25143.4618,0.00012576,2]
[422675856,1779235838000,-1214374.21290236,0.00012313,2]
[422675884,1779235838000,-2002.89,0.00012466,2]
[422675842,1779235838000,-10478.13833012,0.00012229,2]
[422675825,1779235838000,-310.59,0.00011807,2]
[422675840,1779235838000,-12269.09609687,0.00012163,2]
[422675817,1779235838000,-4911.37788427,0.000118,2]
[422675821,1779235838000,-309.12,0.000118,2]
[422675820,1779235838000,-2148.77700831,0.000118,2]
[422675908,1779235838000,-215.15951567,0.00012578,2]
[422675819,1779235838000,-1650.61375639,0.000118,2]
[422675822,1779235838000,-166457.3817628,0.000118,2]
[422675824,1779235838000,-1826104.94038601,0.000118,2]
[422675823,1779235838000,-3178.49680005,0.000118,2]
[422675833,1779235838000,-166.66,0.00011969,2]
[422675827,1779235838000,-150.0,0.00011899,2]
[422675828,1779235838000,-9999.98,0.000119,2]
[422675831,1779235838000,-1500.0,0.000119,4]
[422675826,1779235838000,-420.74,0.00011819,2]
[422675832,1779235838000,-250.0,0.0001196,2]
[422675829,1779235838000,-299.99,0.000119,2]
[422675830,1779235838000,-9999.99,0.000119,2]
[422675834,1779235838000,-604.3,0.00011969,2]
[422675846,1779235838000,-250.0,0.00012302,2]
[422675838,1779235838000,-195.81,0.00012137,2]
[422675837,1779235838000,-420.74,0.00012101,2]
[422675835,1779235838000,-22113.828137,0.00012045,2]
[422675850,1779235838000,-500.0,0.00012312,2]
[422675848,1779235838000,-315.56222463,0.00012303,2]
[422675844,1779235838000,-1235.81804248,0.00012229,2]
[422675851,1779235838000,-3576.0,0.00012313,5]
[422675853,1779235838000,-285625.78709764,0.00012313,2]
[422675909,1779235838000,-500.0,0.00012586,2]
[422675818,1779235838000,-325.61500278,0.000118,2]
[422675913,1779235838000,-160.0,0.00012609,2]
[422675966,1779235838000,-241.34087735,0.0001315,2]
[422675971,1779235838000,-500.0,0.0001315,2]
[422675973,1779235838000,-256.32821497,0.0001315,2]
[422675975,1779235838000,-150.0,0.0001315,2]
[422675977,1779235838000,-500.0,0.0001315,2]
[422675979,1779235838000,-500.0,0.0001315,2]
[422675981,1779235838000,-150.0,0.0001315,2]
[422675983,1779235838000,-500.0,0.0001315,2]
[422675985,1779235838000,-500.0,0.0001315,2]
[422675989,1779235838000,-500.0,0.0001315,2]
[422675991,1779235838000,-185.87830768,0.0001315,2]
[422675987,1779235838000,-500.0,0.0001315,2]
[422675995,1779235838000,-500.0,0.0001315,2]
[422675997,1779235838000,-413.19836164,0.0001315,2]
[422675998,1779235838000,-500.0,0.0001315,2]
[422676002,1779235838000,-500.0,0.0001315,2]
[422676000,1779235838000,-500.0,0.0001315,2]
[422676008,1779235838000,-500.0,0.0001315,2]
[422676004,1779235838000,-500.0,0.0001315,2]
[422676006,1779235838000,-500.0,0.0001315,2]
[422676016,1779235838000,-500.0,0.0001315,2]
[422676010,1779235838000,-500.0,0.0001315,2]
[422676014,1779235838000,-500.0,0.0001315,2]
[422676012,1779235838000,-500.0,0.0001315,2]
[422675911,1779235838000,-1968.39025483,0.0001259,2]
[422675967,1779235838000,-500.0,0.0001315,2]
[422675969,1779235838000,-150.0,0.0001315,2]
[422675993,1779235838000,-500.0,0.0001315,2]
[422675962,1779235838000,-500.0,0.0001315,2]
[422675965,1779235838000,-500.0,0.0001315,2]
[422675915,1779235838000,-517.53,0.00012611,2]
[422675923,1779235838000,-420.0,0.00012694,2]
[422675925,1779235838000,-2000.0,0.00012702,2]
[422675917,1779235838000,-12269.09609687,0.00012619,2]
[422675927,1779235838000,-22113.828137,0.00012721,2]
[422675929,1779235838000,-150.0,0.00012722,7]
[422675921,1779235838000,-208.58623393,0.00012683,2]
[422675931,1779235838000,-1000.0,0.00012736,2]
[422675935,1779235838000,-1900.0,0.000129,4]
[422675932,1779235838000,-1264.40909183,0.00012835,2]
[422675934,1779235838000,-500.0,0.0001286,2]
[422675948,1779235838000,-22113.828137,0.00013059,2]
[422675919,1779235838000,-22398.14276477,0.00012667,2]
[422675954,1779235838000,-500.0,0.0001315,2]
[422675946,1779235838000,-1052.079914,0.00013019,2]
[422675943,1779235838000,-255.0,0.00012982,2]
[422675960,1779235838000,-500.0,0.0001315,2]
[422675958,1779235838000,-500.0,0.0001315,2]
[422675937,1779235838000,-22398.14276477,0.00012933,2]
[422675956,1779235838000,-500.0,0.0001315,2]
[422675963,1779235838000,-150.0,0.0001315,2]
[422675950,1779235838000,-12269.09609687,0.00013075,2]
[422675952,1779235838000,-500.0,0.00013134,2]
[422675939,1779235838000,-26811.0,0.00012939,2]
[422675945,1779235838000,-3619.47379772,0.00013,2]
[422675941,1779235838000,-166.66,0.00012957,2]
[422676103,1779235839000,-623.0,0.0001315,2]
[422676097,1779235839000,-500.0,0.0001315,2]
[422676104,1779235839000,-623.0,0.0001315,2]
[422676095,1779235839000,-623.0,0.0001315,2]
[422676093,1779235839000,-500.0,0.0001315,2]
[422676085,1779235839000,-500.0,0.0001315,2]
[422676091,1779235839000,-623.0,0.0001315,2]
[422676099,1779235839000,-500.0,0.0001315,2]
[422676089,1779235839000,-500.0,0.0001315,2]
[422676087,1779235839000,-623.0,0.0001315,2]
[422676083,1779235839000,-500.0,0.0001315,2]
[422676077,1779235839000,-500.0,0.0001315,2]
[422676101,1779235839000,-597.79764243,0.0001315,2]
[422676106,1779235839000,-623.0,0.0001315,2]
[422676148,1779235839000,-22113.828137,0.00013398,2]
[422676122,1779235839000,-623.0,0.0001315,2]
[422676110,1779235839000,-623.0,0.0001315,2]
[422676114,1779235839000,-349.07736479,0.0001315,2]
[422676116,1779235839000,-623.0,0.0001315,2]
[422676120,1779235839000,-623.0,0.0001315,2]
[422676118,1779235839000,-623.0,0.0001315,2]
[422676130,1779235839000,-171.0,0.0001315,2]
[422676112,1779235839000,-623.0,0.0001315,2]
[422676124,1779235839000,-623.0,0.0001315,2]
[422676128,1779235839000,-623.38423794,0.0001315,2]
[422676132,1779235839000,-22398.14276477,0.000132,2]
[422676134,1779235839000,-259.438668,0.00013202,2]
[422676079,1779235839000,-500.0,0.0001315,2]
[422676108,1779235839000,-500.0,0.0001315,2]
[422676081,1779235839000,-319.28543884,0.0001315,2]
[422676020,1779235839000,-500.0,0.0001315,2]
[422676072,1779235839000,-500.0,0.0001315,2]
[422676018,1779235839000,-500.0,0.0001315,2]
[422676022,1779235839000,-426.20852031,0.0001315,2]
[422676150,1779235839000,-500.0,0.00013408,2]
[422676027,1779235839000,-500.0,0.0001315,2]
[422676024,1779235839000,-623.0,0.0001315,2]
[422676029,1779235839000,-500.0,0.0001315,2]
[422676026,1779235839000,-500.0,0.0001315,2]
[422676032,1779235839000,-623.0,0.0001315,2]
[422676033,1779235839000,-150.0,0.0001315,2]
[422676036,1779235839000,-500.0,0.0001315,2]
[422676037,1779235839000,-623.0,0.0001315,2]
[422676042,1779235839000,-150.0,0.0001315,2]
[422676045,1779235839000,-150.0,0.0001315,2]
[422676043,1779235839000,-623.0,0.0001315,2]
[422676040,1779235839000,-500.0,0.0001315,2]
[422676047,1779235839000,-500.0,0.0001315,2]
[422676053,1779235839000,-275.90692005,0.0001315,2]
[422676049,1779235839000,-623.0,0.0001315,2]
[422676051,1779235839000,-500.0,0.0001315,2]
[422676055,1779235839000,-500.0,0.0001315,2]
[422676057,1779235839000,-500.0,0.0001315,2]
[422676058,1779235839000,-623.0,0.0001315,2]
[422676062,1779235839000,-500.0,0.0001315,2]
[422676060,1779235839000,-500.0,0.0001315,2]
[422676073,1779235839000,-632.65490177,0.0001315,2]
[422676064,1779235839000,-500.0,0.0001315,2]
[422676068,1779235839000,-500.0,0.0001315,2]
[422676070,1779235839000,-623.0,0.0001315,2]
[422676066,1779235839000,-623.0,0.0001315,2]
[422676075,1779235839000,-623.0,0.0001315,2]
[422676152,1779235839000,-166.66,0.00013451,2]
[422676126,1779235839000,-623.0,0.0001315,2]
[422676136,1779235839000,-1185.159094,0.00013202,2]
[422676204,1779235839000,-160.24,0.00013591,2]
[422676208,1779235839000,-150.0,0.00013604,2]
[422676212,1779235839000,-150.0,0.00013616,2]
[422676210,1779235839000,-500.0,0.00013609,2]
[422676206,1779235839000,-150.0,0.00013603,2]
[422676216,1779235839000,-150.0,0.00013624,2]
[422676214,1779235839000,-150.0,0.00013621,2]
[422676222,1779235839000,-619.61673054,0.0001365,2]
[422676220,1779235839000,-150.0,0.00013638,2]
[422676224,1779235839000,-150.0,0.00013654,2]
[422676218,1779235839000,-150.0,0.00013638,2]
[422676226,1779235839000,-150.0,0.00013659,2]
[422676228,1779235839000,-1264.40909183,0.00013661,2]
[422676245,1779235839000,-500.0,0.00013698,2]
[422676232,1779235839000,-150.0,0.00013671,2]
[422676234,1779235839000,-500.0,0.00013682,2]
[422676247,1779235839000,-500.0,0.00013698,2]
[422676242,1779235839000,-500.0,0.00013698,2]
[422676238,1779235839000,-150.0,0.00013692,2]
[422676240,1779235839000,-500.0,0.00013698,2]
[422676236,1779235839000,-150.0,0.00013687,2]
[422676249,1779235839000,-500.0,0.00013698,2]
[422676251,1779235839000,-500.0,0.00013698,2]
[422676257,1779235839000,-500.0,0.00013698,2]
[422676254,1779235839000,-478.0,0.00013698,2]
[422676260,1779235839000,-500.0,0.00013698,2]
[422676262,1779235839000,-500.0,0.00013698,2]
[422676154,1779235839000,-22398.14276477,0.00013467,2]
[422676264,1779235839000,-500.0,0.00013698,2]
[422676202,1779235839000,-150.0,0.00013588,2]
[422676200,1779235839000,-150.0,0.00013576,2]
[422676230,1779235839000,-150.0,0.00013664,2]
[422676193,1779235839000,-10478.1383301,0.00013565,2]
[422676138,1779235839000,-1264.40909183,0.00013248,2]
[422676198,1779235839000,-150.0,0.00013573,2]
[422676142,1779235839000,-2075.671369,0.00013285,2]
[422676146,1779235839000,-500.0,0.00013335,2]
[422676144,1779235839000,-3757.864923,0.00013285,2]
[422676140,1779235839000,-2118.075273,0.00013285,2]
[422676159,1779235839000,-215.41524244,0.00013471,7]
[422676161,1779235839000,-160.05,0.00013479,2]
[422676158,1779235839000,-150.0,0.00013471,7]
[422676163,1779235839000,-150.0,0.00013488,2]
[422676162,1779235839000,-150.0,0.00013488,2]
[422676164,1779235839000,-150.0,0.00013488,2]
[422676165,1779235839000,-151.44167909,0.00013488,2]
[422676167,1779235839000,-150.0,0.00013488,2]
[422676169,1779235839000,-150.0,0.00013488,2]
[422676156,1779235839000,-150.0,0.00013471,7]
[422676182,1779235839000,-150.0,0.0001353,2]
[422676176,1779235839000,-150.0,0.00013504,2]
[422676187,1779235839000,-150.0,0.00013538,2]
[422676184,1779235839000,-12269.09609687,0.00013532,2]
[422676191,1779235839000,-150.0,0.00013556,2]
[422676180,1779235839000,-150.0,0.00013521,2]
[422676178,1779235839000,-441.0,0.00013507,2]
[422676174,1779235839000,-150.0,0.00013488,2]
[422676166,1779235839000,-150.0,0.00013488,2]
[422676168,1779235839000,-150.00000001,0.00013488,2]
[422676172,1779235839000,-150.0,0.00013488,2]
[422676171,1779235839000,-150.0,0.00013488,2]
[422676189,1779235839000,-150.0,0.00013554,2]
[422676195,1779235839000,-150.0,0.00013571,2]
[422676328,1779235840000,-500.0,0.00013698,2]
[422676334,1779235840000,-921.98,0.00013698,2]
[422676330,1779235840000,-309.02129379,0.00013698,2]
[422676329,1779235840000,-500.0,0.00013698,2]
[422676327,1779235840000,-500.0,0.00013698,2]
[422676314,1779235840000,-500.0,0.00013698,2]
[422676317,1779235840000,-500.0,0.00013698,2]
[422676313,1779235840000,-508.71985142,0.00013698,2]
[422676319,1779235840000,-500.0,0.00013698,2]
[422676318,1779235840000,-500.0,0.00013698,2]
[422676338,1779235840000,-921.98,0.00013698,2]
[422676320,1779235840000,-500.0,0.00013698,2]
[422676321,1779235840000,-500.0,0.00013698,2]
[422676325,1779235840000,-500.0,0.00013698,2]
[422676331,1779235840000,-921.98,0.00013698,2]
[422676351,1779235840000,-500.0,0.00013698,2]
[422676332,1779235840000,-921.98,0.00013698,2]
[422676326,1779235840000,-500.0,0.00013698,2]
[422676335,1779235840000,-921.98,0.00013698,2]
[422676336,1779235840000,-921.98,0.00013698,2]
[422676337,1779235840000,-921.98,0.00013698,2]
[422676340,1779235840000,-921.98,0.00013698,2]
[422676348,1779235840000,-921.98,0.00013698,2]
[422676339,1779235840000,-921.98,0.00013698,2]
[422676341,1779235840000,-921.98,0.00013698,2]
[422676344,1779235840000,-921.98,0.00013698,2]
[422676347,1779235840000,-921.98,0.00013698,2]
[422676343,1779235840000,-921.98,0.00013698,2]
[422676342,1779235840000,-921.98,0.00013698,2]
[422676350,1779235840000,-500.0,0.00013698,2]
[422676333,1779235840000,-921.98,0.00013698,2]
[422676315,1779235840000,-500.0,0.00013698,2]
[422676277,1779235840000,-500.0,0.00013698,2]
[422676323,1779235840000,-500.0,0.00013698,2]
[422676345,1779235840000,-921.98,0.00013698,2]
[422676275,1779235840000,-500.0,0.00013698,2]
[422676267,1779235840000,-500.0,0.00013698,2]
[422676269,1779235840000,-500.0,0.00013698,2]
[422676288,1779235840000,-500.0,0.00013698,2]
[422676284,1779235840000,-502.95676668,0.00013698,2]
[422676286,1779235840000,-500.0,0.00013698,2]
[422676290,1779235840000,-508.97372054,0.00013698,2]
[422676279,1779235840000,-500.0,0.00013698,2]
[422676281,1779235840000,-500.0,0.00013698,2]
[422676271,1779235840000,-500.0,0.00013698,2]
[422676273,1779235840000,-500.0,0.00013698,2]
[422676292,1779235840000,-500.0,0.00013698,2]
[422676294,1779235840000,-500.0,0.00013698,2]
[422676316,1779235840000,-500.0,0.00013698,2]
[422676303,1779235840000,-500.0,0.00013698,2]
[422676310,1779235840000,-500.0,0.00013698,2]
[422676300,1779235840000,-500.0,0.00013698,2]
[422676298,1779235840000,-500.0,0.00013698,2]
[422676304,1779235840000,-500.0,0.00013698,2]
[422676302,1779235840000,-500.0,0.00013698,2]
[422676296,1779235840000,-500.0,0.00013698,2]
[422676306,1779235840000,-500.0,0.00013698,2]
[422676308,1779235840000,-500.0,0.00013698,2]
[422676309,1779235840000,-372.71342826,0.00013698,2]
[422676307,1779235840000,-500.0,0.00013698,2]
[422676312,1779235840000,-500.64223079,0.00013698,2]
[422676322,1779235840000,-500.0,0.00013698,2]
[422676324,1779235840000,-500.0,0.00013698,2]
[422676311,1779235840000,-500.0,0.00013698,2]
[422676305,1779235840000,-500.0,0.00013698,2]
[422676346,1779235840000,-921.98,0.00013698,2]
[422676432,1779235840000,-556.64,0.00013698,2]
[422676352,1779235840000,-500.0,0.00013698,2]
[422676398,1779235840000,-500.0,0.00013698,2]
[422676394,1779235840000,-500.0,0.00013698,2]
[422676401,1779235840000,-556.64,0.00013698,2]
[422676400,1779235840000,-500.0,0.00013698,2]
[422676403,1779235840000,-556.64,0.00013698,2]
[422676421,1779235840000,-556.64,0.00013698,2]
[422676405,1779235840000,-556.64,0.00013698,2]
[422676418,1779235840000,-556.64,0.00013698,2]
[422676414,1779235840000,-556.64,0.00013698,2]
[422676407,1779235840000,-556.64,0.00013698,2]
[422676416,1779235840000,-556.64,0.00013698,2]
[422676409,1779235840000,-556.64,0.00013698,2]
[422676420,1779235840000,-556.64,0.00013698,2]
[422676411,1779235840000,-556.64,0.00013698,2]
[422676396,1779235840000,-500.0,0.00013698,2]
[422676412,1779235840000,-556.64,0.00013698,2]
[422676427,1779235840000,-556.64,0.00013698,2]
[422676425,1779235840000,-556.64,0.00013698,2]
[422676439,1779235840000,-1405.85,0.00013698,2]
[422676443,1779235840000,-1405.85,0.00013698,2]
[422676441,1779235840000,-1405.85,0.00013698,2]
[422676445,1779235840000,-1405.85,0.00013698,2]
[422676447,1779235840000,-1405.85,0.00013698,2]
[422676434,1779235840000,-556.64,0.00013698,2]
[422676430,1779235840000,-556.64,0.00013698,2]
[422676435,1779235840000,-1405.85,0.00013698,2]
[422676437,1779235840000,-1405.85,0.00013698,2]
[422676448,1779235840000,-1405.85,0.00013698,2]
[422676450,1779235840000,-1405.85,0.00013698,2]
[422676349,1779235840000,-500.0,0.00013698,2]
[422676423,1779235840000,-556.64,0.00013698,2]
[422676385,1779235840000,-517.5226293,0.00013698,2]
[422676452,1779235840000,-1405.85,0.00013698,2]
[422676391,1779235840000,-500.0,0.00013698,2]
[422676378,1779235840000,-500.0,0.00013698,2]
[422676356,1779235840000,-500.0,0.00013698,2]
[422676354,1779235840000,-500.0,0.00013698,2]
[422676357,1779235840000,-500.0,0.00013698,2]
[422676353,1779235840000,-500.0,0.00013698,2]
[422676363,1779235840000,-500.0,0.00013698,2]
[422676360,1779235840000,-500.0,0.00013698,2]
[422676359,1779235840000,-500.0,0.00013698,2]
[422676362,1779235840000,-500.0,0.00013698,2]
[422676361,1779235840000,-500.0,0.00013698,2]
[422676358,1779235840000,-500.0,0.00013698,2]
[422676364,1779235840000,-500.0,0.00013698,2]
[422676366,1779235840000,-500.0,0.00013698,2]
[422676374,1779235840000,-500.0,0.00013698,2]
[422676375,1779235840000,-500.0,0.00013698,2]
[422676355,1779235840000,-500.0,0.00013698,2]
[422676368,1779235840000,-500.0,0.00013698,2]
[422676389,1779235840000,-500.0,0.00013698,2]
[422676387,1779235840000,-500.0,0.00013698,2]
[422676392,1779235840000,-500.0,0.00013698,2]
[422676383,1779235840000,-500.0,0.00013698,2]
[422676376,1779235840000,-500.0,0.00013698,2]
[422676379,1779235840000,-500.0,0.00013698,2]
[422676377,1779235840000,-500.0,0.00013698,2]
[422676381,1779235840000,-500.0,0.00013698,2]
[422676373,1779235840000,-500.0,0.00013698,2]
[422676371,1779235840000,-500.0,0.00013698,2]
[422676370,1779235840000,-500.0,0.00013698,2]
[422676365,1779235840000,-500.0,0.00013698,2]
[422676367,1779235840000,-500.0,0.00013698,2]
[422676369,1779235840000,-500.0,0.00013698,2]
[422676372,1779235840000,-500.0,0.00013698,2]
[422676516,1779235841000,-500.0,0.00013698,2]
[422676517,1779235841000,-447.73445891,0.00013698,2]
[422676512,1779235841000,-500.0,0.00013698,2]
[422676510,1779235841000,-500.0,0.00013698,2]
[422676515,1779235841000,-500.0,0.00013698,2]
[422676497,1779235841000,-6152.52,0.00013698,2]
[422676514,1779235841000,-500.0,0.00013698,2]
[422676509,1779235841000,-6152.52,0.00013698,2]
[422676498,1779235841000,-500.0,0.00013698,2]
[422676499,1779235841000,-6152.52,0.00013698,2]
[422676500,1779235841000,-500.0,0.00013698,2]
[422676501,1779235841000,-6152.52,0.00013698,2]
[422676511,1779235841000,-500.0,0.00013698,2]
[422676513,1779235841000,-500.0,0.00013698,2]
[422676536,1779235841000,-500.0,0.00013698,2]
[422676519,1779235841000,-689.57,0.00013698,2]
[422676522,1779235841000,-689.57,0.00013698,2]
[422676518,1779235841000,-689.57,0.00013698,2]
[422676523,1779235841000,-689.57,0.00013698,2]
[422676520,1779235841000,-689.57,0.00013698,2]
[422676524,1779235841000,-689.57,0.00013698,2]
[422676525,1779235841000,-689.57,0.00013698,2]
[422676535,1779235841000,-689.57,0.00013698,2]
[422676527,1779235841000,-689.57,0.00013698,2]
[422676528,1779235841000,-689.57,0.00013698,2]
[422676526,1779235841000,-689.57,0.00013698,2]
[422676529,1779235841000,-689.57,0.00013698,2]
[422676530,1779235841000,-689.57,0.00013698,2]
[422676496,1779235841000,-500.0,0.00013698,2]
[422676521,1779235841000,-689.57,0.00013698,2]
[422676495,1779235841000,-6152.52,0.00013698,2]
[422676488,1779235841000,-500.0,0.00013698,2]
[422676506,1779235841000,-500.0,0.00013698,2]
[422676532,1779235841000,-689.57,0.00013698,2]
[422676454,1779235841000,-1405.85,0.00013698,2]
[422676456,1779235841000,-1405.85,0.00013698,2]
[422676458,1779235841000,-1405.85,0.00013698,2]
[422676460,1779235841000,-1405.85,0.00013698,2]
[422676464,1779235841000,-1405.85,0.00013698,2]
[422676466,1779235841000,-1405.85,0.00013698,2]
[422676469,1779235841000,-1405.85,0.00013698,2]
[422676471,1779235841000,-6152.52,0.00013698,2]
[422676462,1779235841000,-1405.85,0.00013698,2]
[422676473,1779235841000,-6152.52,0.00013698,2]
[422676475,1779235841000,-6152.52,0.00013698,2]
[422676477,1779235841000,-6152.52,0.00013698,2]
[422676478,1779235841000,-6152.52,0.00013698,2]
[422676480,1779235841000,-6152.52,0.00013698,2]
[422676483,1779235841000,-500.0,0.00013698,2]
[422676485,1779235841000,-6152.52,0.00013698,2]
[422676486,1779235841000,-500.0,0.00013698,2]
[422676492,1779235841000,-500.0,0.00013698,2]
[422676490,1779235841000,-500.0,0.00013698,2]
[422676494,1779235841000,-500.0,0.00013698,2]
[422676489,1779235841000,-6152.52,0.00013698,2]
[422676491,1779235841000,-6152.52,0.00013698,2]
[422676493,1779235841000,-6152.52,0.00013698,2]
[422676503,1779235841000,-6152.52,0.00013698,2]
[422676502,1779235841000,-500.0,0.00013698,2]
[422676505,1779235841000,-6152.52,0.00013698,2]
[422676507,1779235841000,-6152.52,0.00013698,2]
[422676504,1779235841000,-500.0,0.00013698,2]
[422676508,1779235841000,-500.0,0.00013698,2]
[422676531,1779235841000,-689.57,0.00013698,2]
[422676558,1779235841000,-500.0,0.00013698,2]
[422676533,1779235841000,-689.57,0.00013698,2]
[422676568,1779235841000,-500.0,0.00013698,2]
[422676566,1779235841000,-500.0,0.00013698,2]
[422676573,1779235841000,-500.0,0.00013698,2]
[422676572,1779235841000,-500.0,0.00013698,2]
[422676575,1779235841000,-500.0,0.00013698,2]
[422676583,1779235841000,-500.0,0.00013698,2]
[422676586,1779235841000,-371.97687373,0.00013698,2]
[422676587,1779235841000,-537.75217166,0.00013698,2]
[422676585,1779235841000,-512.8400443,0.00013698,2]
[422676584,1779235841000,-500.0,0.00013698,2]
[422676578,1779235841000,-500.0,0.00013698,2]
[422676577,1779235841000,-500.0,0.00013698,2]
[422676574,1779235841000,-500.0,0.00013698,2]
[422676580,1779235841000,-500.0,0.00013698,2]
[422676576,1779235841000,-500.0,0.00013698,2]
[422676581,1779235841000,-500.0,0.00013698,2]
[422676582,1779235841000,-500.0,0.00013698,2]
[422676579,1779235841000,-588.50661964,0.00013698,2]
[422676588,1779235841000,-500.0,0.00013698,2]
[422676589,1779235841000,-500.0,0.00013698,2]
[422676599,1779235841000,-500.0,0.00013698,2]
[422676598,1779235841000,-500.0,0.00013698,2]
[422676594,1779235841000,-500.0,0.00013698,2]
[422676597,1779235841000,-500.0,0.00013698,2]
[422676590,1779235841000,-500.0,0.00013698,2]
[422676596,1779235841000,-500.0,0.00013698,2]
[422676592,1779235841000,-500.0,0.00013698,2]
[422676593,1779235841000,-276.56058421,0.00013698,2]
[422676534,1779235841000,-689.57,0.00013698,2]
[422676567,1779235841000,-500.0,0.00013698,2]
[422676569,1779235841000,-500.0,0.00013698,2]
[422676591,1779235841000,-500.0,0.00013698,2]
[422676565,1779235841000,-500.0,0.00013698,2]
[422676571,1779235841000,-500.0,0.00013698,2]
[422676537,1779235841000,-500.0,0.00013698,2]
[422676547,1779235841000,-500.0,0.00013698,2]
[422676544,1779235841000,-500.0,0.00013698,2]
[422676540,1779235841000,-500.0,0.00013698,2]
[422676542,1779235841000,-500.0,0.00013698,2]
[422676543,1779235841000,-500.0,0.00013698,2]
[422676539,1779235841000,-500.0,0.00013698,2]
[422676548,1779235841000,-500.0,0.00013698,2]
[422676545,1779235841000,-490.0,0.00013698,2]
[422676546,1779235841000,-500.0,0.00013698,2]
[422676541,1779235841000,-500.0,0.00013698,2]
[422676550,1779235841000,-500.0,0.00013698,2]
[422676551,1779235841000,-500.0,0.00013698,2]
[422676538,1779235841000,-500.0,0.00013698,2]
[422676554,1779235841000,-500.0,0.00013698,2]
[422676570,1779235841000,-500.0,0.00013698,2]
[422676564,1779235841000,-500.0,0.00013698,2]
[422676561,1779235841000,-500.0,0.00013698,2]
[422676563,1779235841000,-182.00213245,0.00013698,2]
[422676549,1779235841000,-500.0,0.00013698,2]
[422676559,1779235841000,-500.0,0.00013698,2]
[422676562,1779235841000,-500.0,0.00013698,2]
[422676557,1779235841000,-500.0,0.00013698,2]
[422676595,1779235841000,-500.0,0.00013698,2]
[422676555,1779235841000,-500.0,0.00013698,2]
[422676560,1779235841000,-500.0,0.00013698,2]
[422676552,1779235841000,-500.0,0.00013698,2]
[422676553,1779235841000,-500.0,0.00013698,2]
[422676556,1779235841000,-500.0,0.00013698,2]
[422676639,1779235842000,-654.1,0.00013698,2]
[422676641,1779235842000,-500.0,0.00013698,2]
[422676638,1779235842000,-654.1,0.00013698,2]
[422676643,1779235842000,-500.0,0.00013698,2]
[422676636,1779235842000,-654.1,0.00013698,2]